Cogmind - Beta 16.1 @@@ ROGUE MODE // 2026.03.27 @ 00:50:09 Player: KURIIRI Result: Self-destructed Performance ------------- Evolutions (0) 0 Regions Visited (3) 600 Robots Destroyed (37) 185 Value Destroyed (1103) 1103 Prototype IDs (15) 300 Alien Tech Used (0) 0 Bonus (-66) -66 TOTAL SCORE: 2122 Bonus ------- Friendly Fire -66 Cogmind --------- Core Integrity 65/250 Matter 300/300 Energy 440/440 System Corruption 0% Temperature Cool (0) Movement Rolling (205) Ox7 Location -7/Recycling Parts ------- > --- POWER (1+1) ------ Ion Engine Reinforced Deuterium Engine (+) > --- PROPULSION (2) --- Compact Wheel Compact Wheel > --- UTILITY (2) ------ Humpback > --- WEAPON (2) ------- Powered Cannon > --- INVENTORY (35) --- Ion Engine Subdweller Power Source Subdweller Power Source Meta Core Subdweller Monowheel Subdweller Monowheel Small Storage Unit Subdweller Optics Makeshift Light Armor Plating Hacking Suite Subdweller Laser Subdweller Beam Cannon Subdweller Shrapnel Launcher Makeshift Hammer SUBCON Basin (Full) Peak State ------------ > --- POWER ------------ Ion Engine Reinforced Deuterium Engine > --- PROPULSION ------- Compact Wheel Compact Wheel > --- UTILITY ---------- Humpback > --- WEAPON ----------- Powered Cannon > --- INVENTORY -------- Ion Engine Subdweller Power Source Subdweller Power Source Meta Core Subdweller Monowheel Subdweller Monowheel Small Storage Unit Subdweller Optics Makeshift Light Armor Plating Hacking Suite Subdweller Laser Subdweller Beam Cannon Subdweller Shrapnel Launcher Makeshift Hammer SUBCON Basin [Rating: 45] Favorites ----------- Power Ion Engine Engine Ion Engine Propulsion Light Treads Treads Light Treads Leg Aluminum Leg Wheel Compact Wheel Utility Scrap Shield Device Improved Terrain Scanner Storage Humpback Protection Scrap Shield Weapon Light EM Pulse Cannon Energy Gun EM Pulse Gun Energy Cannon Light EM Pulse Cannon Ballistic Gun Light Assault Rifle Impact Weapon Mace Build | -11 -10 -10 -7 ------- Run | Yrd Mat Sub Rec Slots Evolved . | . . . . Power . | . . . . Propulsion . | . . . . Utility . | . . . . Weapon . | . . . . Parts Attached 18 | 4 3 10 1 Power 1 | . . . 1 Engine 1 | . . . 1 Core . | . . . . Reactor . | . . . . Propulsion 5 | 2 . 3 . Treads 2 | 2 . . . Leg . | . . . . Wheel 3 | . . 3 . Hover . | . . . . Flight . | . . . . Utility 3 | 1 . 2 . Device 1 | 1 . . . Storage 1 | . . 1 . Processor . | . . . . Hackware . | . . . . Protection 1 | . . 1 . Artifact . | . . . . Weapon 9 | 1 3 5 . Energy Gun 1 | . . 1 . Energy Cannon 6 | . 3 3 . Ballistic Gun 1 | 1 . . . Ballistic Cannon . | . . . . Launcher . | . . . . Special Weapon . | . . . . Impact Weapon 1 | . . 1 . Slashing Weapon . | . . . . Piercing Weapon . | . . . . Special Melee Weapon . | . . . . Unidentified Prototypes . | . . . . Parts Lost 3 | . . 3 . Power . | . . . . Propulsion 2 | . . 2 . Utility 1 | . . 1 . Weapon . | . . . . Highest Loss Streak 2 | . . 2 . To Critical Strikes . | . . . . Average Backups 6 | 6 7 5 14 Power . | 1 1 . 3 Propulsion 1 | 4 2 . 2 Utility 1 | . . 1 4 Weapon 2 | 1 3 2 4 Tool/Special . | . . . . Unused Backups 17 | . 4 1 12 Power 4 | . 1 . 3 Propulsion 1 | . . . 1 Utility 4 | . 1 . 3 Weapon 7 | . 2 1 4 Tool/Special 1 | . . . 1 Average Slot Usage (%) 78 | . 100 75 70 Engine 13 | . 14 13 20 Treads 19 | . 28 18 . Wheel 7 | . . 8 25 Device 2 | . 14 . . Storage 4 | . 14 3 12 Protection 7 | . . 8 . Energy Cannon 21 | . 26 21 12 Peak Build Rating 45 | 9 12 42 45 Average Rating 17 | 6 11 18 44 On Entrance 17 | 6 9 12 41 Avg Prop Armor Cover (%) 4 | . . 4 . Naked Turns . | . . . . Heaviest Build 229 | 15 19 214 229 Greatest Support 40 | 40 40 40 32 Greatest Overweight (x) 7 | . . 6 7 Average Overweight (x) 1 | . . 1 6 Largest Inventory Capacity 35 | 8 8 35 35 Average Capacity 11 | 8 8 12 35 Most Carried 29 | 6 8 29 29 Average Carried 7 | 5 7 7 29 Final Capacity 35 | 8 8 35 35 Final Carried 29 | 4 7 29 29 Class Distribution -------------------- 79% | Mutant 20% | Hauler-Mutant Dominant Class ---------------- Mutant | -10/Materials Mutant | -10/Subcaves Hauler-Mutant | -7/Recycling Resources | -11 -10 -10 -7 ----------- Run | Yrd Mat Sub Rec Matter Collected 404 | 228 51 115 10 Remotely . | . . . . Salvage Created 1600 | 91 640 807 62 Parts 77 | 8 34 33 2 Haulers Intercepted 2 | . 2 . . Recyclers Shooed 2 | 1 1 . . Parts Field Recycled . | . . . . Retrieved Matter . | . . . . Parts Self-Destructed 18 | . . 18 . Prevented 3 | . . 3 . Parts Restored . | . . . . Kills | -11 -10 -10 -7 ------- Run | Yrd Mat Sub Rec Combat Hostiles Destroyed 25 | . 11 13 1 Cannons 13 | . 5 8 . AOE 2 | . 2 . . Classes Destroyed 11 | 2 5 3 1 Tunneler 2 | 2 . . . Hauler 2 | . 2 . . Recycler 1 | 1 . . . Operator 2 | . 2 . . Turret 2 | . . 2 . Watcher 3 | . 3 . . Swarmer 3 | . 3 . . Grunt 9 | . 8 1 . Sentry 1 | . . . 1 Artisan 3 | . . 3 . Subdweller 12 | . . 12 . Best Kill Streak 3 | 2 3 2 1 Combat Bots Only 3 | . 3 2 1 Max Kills in Single Turn 1 | 1 1 1 1 Gunslinging . | . . . . Exploded 1 | . 1 . . Melee . | . . . . Uniques/NPCs Destroyed . | . . . . Combat | -11 -10 -10 -7 -------- Run | Yrd Mat Sub Rec Hostile Shots Fired 118 | . 44 74 . Missed 44 | . 17 27 . Hits 74 | . 27 47 . Projectile 74 | . 27 47 . AOE 2 | . . 2 . Critical Strikes 2 | . . 2 . Damage Taken 1298 | . 328 970 . Core 185 | . 77 108 . Absorbed by Shields . | . . . . Core Remaining (%) 100 | 100 . . . Volleys Fired 114 | 9 35 69 1 Largest 2 | 2 2 2 1 Hottest 136 | 60 112 136 40 Shots Fired 187 | 18 63 105 1 Gun 18 | 18 . . . Cannon 169 | . 63 105 1 Launcher . | . . . . Special . | . . . . Kinetic 9 | 9 . . . Thermal 25 | . . 24 1 Explosive . | . . . . Electromagnetic 153 | 9 63 81 . Robot Hit Streak 20 | 3 6 20 1 Robot Miss Streak 3 | 3 2 3 . Penetration Max . | . . . . Secondary Targets . | . . . . Shots Hit Robots 125 | 9 44 71 1 Core Hits 37 | 4 15 18 . Critical Kills 3 | . . 2 1 Critical Parts Destroyed . | . . . . Critical Strikes 5 | 1 1 2 1 Meltdown 3 | . . 2 1 Corrupt 2 | 1 1 . . Melee Attacks 15 | . . 15 . Impact 15 | . . 15 . Slashing . | . . . . Piercing . | . . . . Sneak Attacks . | . . . . Combat Hostiles . | . . . . Follow-up Attacks . | . . . . Damage Inflicted 3406 | 105 1329 1915 57 Guns 105 | 105 . . . Cannons 3059 | . 1087 1915 57 Explosions 235 | . 235 . . Melee . | . . . . Ramming 7 | . 7 . . Kinetic 34 | 34 . . . Thermal 1203 | . 235 911 57 Explosive . | . . . . Electromagnetic 2162 | 71 1087 1004 . Impact . | . . . . Slashing . | . . . . Piercing . | . . . . Highest Corruption . | . . . . Average Corruption . | . . . . Corruption Purged . | . . . . Corruption Blocked . | . . . . Overload Shots . | . . . . Overflow Damage 67 | . 31 36 . Projectiles 54 | . 18 36 . Explosions 13 | . 13 . . Melee . | . . . . Knockbacks . | . . . . Impact . | . . . . Kinetic . | . . . . Secondary . | . . . . Self-Inflicted Damage 9 | . 9 . . Shots 1 | . 1 . . Rammed 2 | . 2 . . Targets Rammed 2 | . 2 . . Kicked . | . . . . Crushed . | . . . . Highest Temperature 216 | 20 216 27 30 Average Temperature 60 | 13 74 9 20 Received Heat Transfer 381 | . 117 264 . Siege Activations . | . . . . Martial Activations . | . . . . Shielding Activations . | . . . . Robots Disrupted . | . . . . Combat Hostiles . | . . . . Robots Corrupted 9 | . 4 5 . Combat Hostiles 8 | . 4 4 . Parts Fried 10 | . 4 6 . Impact Corruptions . | . . . . Robots Melted 3 | . . 2 1 Combat Hostiles 2 | . . 1 1 Parts Melted 4 | . . 2 2 Heat Transferred 324 | . 250 74 . Parts Sabotaged . | . . . . Parts Stolen . | . . . . Parts Stripped . | . . . . Power Chain Reactions 5 | . 5 . . Alert | -11 -10 -10 -7 ------- Run | Yrd Mat Sub Rec Maximum Alert Level 1 | . 1 . . Low Security (%) 86 | 100 84 . 100 Level 1 13 | . 15 . . Level 2 . | . . . . Level 3 . | . . . . Level 4 . | . . . . Level 5 . | . . . . High Security . | . . . . Max Security . | . . . . Peak Influence 227 | 5 227 . 20 Initial . | . . . . Average 97 | 2 113 . 8 Influence Increases 882 | 15 492 355 20 Destroy 0b10 Robot/C 300 | . 220 60 20 Destroy 0b10 Robot/NC 50 | 15 35 . . Destroy Leader 70 | . 60 10 . Successful Hack 18 | . 18 . . Select Force Hacks 60 | . 60 . . Disable Machine 45 | . 45 . . Destroy Structure 24 | . 24 . . Lose Combat Pursuer 315 | . 30 285 . Influence Decreases 872 | 15 297 549 11 Entered New Map 96 | . . 95 1 Time Decay 746 | 15 297 424 10 Lost Part 30 | . . 30 . Squads Dispatched 2 | . 2 . . Investigation 2 | . 2 . . Extermination . | . . . . Reinforcement . | . . . . Assault . | . . . . Garrison . | . . . . Intercept . | . . . . Searches Triggered . | . . . . Construction Impeded . | . . . . Haulers Reinforced . | . . . . Active Scanning Responses . | . . . . Cargo Convoy Interrupts . | . . . . Stealth | -11 -10 -10 -7 --------- Run | Yrd Mat Sub Rec Distress Signals . | . . . . Communications Jammed . | . . . . Distress Signals . | . . . . Times Spotted 47 | . 18 29 . Peak Tracking Total 3 | . 3 3 . Tactical Retreats 6 | . 2 4 . Traps | -11 -10 -10 -7 ------- Run | Yrd Mat Sub Rec Traps Triggered 1 | . 1 . . Indirectly . | . . . . Trap Hack Attempts . | . . . . Triggered . | . . . . Disarmed . | . . . . Reprogrammed 4 | . 4 . . Reused . | . . . . Traps Extracted . | . . . . Installed . | . . . . Triggered . | . . . . Machines | -11 -10 -10 -7 ---------- Run | Yrd Mat Sub Rec Machines Disabled 6 | . 3 3 . Max in Single Turn 1 | . 1 1 . Machines Repaired . | . . . . Machines Dismantled . | . . . . Machines Sabotaged . | . . . . Overloaded Fab Kills . | . . . . Hacking | -11 -10 -10 -7 --------- Run | Yrd Mat Sub Rec Machines Accessed 13 | . 9 4 . Terminals 7 | . 7 . . Fabricators . | . . . . Repair Stations . | . . . . Recycling Units 2 | . 2 . . Scanalyzers . | . . . . Garrison Access . | . . . . Total Hacks 36 | . 29 7 . Successful 26 | . 19 7 . Failed 9 | . 9 . . Catastrophic 1 | . 1 . . Database Lockouts 1 | . 1 . . Manual 18 | . 18 . . Terminals 27 | . 27 . . Fabricators . | . . . . Repair Stations . | . . . . Recycling Units 2 | . 2 . . Scanalyzers . | . . . . Garrison Access . | . . . . Terminal Hacks 17 | . 10 7 . Record 4 | . . 4 . Robot Analysis 1 | . 1 . . Prototype ID Bank 1 | . 1 . . Open Door 1 | . . 1 . Recycling Unit Index 1 | . 1 . . Locate Traps 2 | . 2 . . Disarm Traps 1 | . 1 . . Reprogram Traps 1 | . 1 . . Registered Components 1 | . 1 . . Zone Layout 2 | . 2 . . Proto ID Catalog 1 | . . 1 . Release Object 1 | . . 1 . Fabricator Hacks . | . . . . Repair Station Hacks . | . . . . Recycling Unit Hacks . | . . . . Scanalyzer . | . . . . Garrison Access Hacks . | . . . . Unauthorized Hacks 9 | . 9 . . Terminals 7 | . 7 . . Botnet 2 | . 2 . . Skim 5 | . 5 . . Fabricators . | . . . . Repair Stations . | . . . . Recycling Units 2 | . 2 . . Tunnel 2 | . 2 . . Scanalyzers . | . . . . Garrison Access . | . . . . Data Cores Recovered 2 | . 2 . . Used . | . . . . Hacking Detections 4 | . 4 . . Full Trace Events . | . . . . Feedback Events . | . . . . Feedback Blocked . | . . . . Robot Schematics Acquired . | . . . . Robots Built . | . . . . Authchips . | . . . . Time . | . . . . Total Robot Build Rating . | . . . . Part Schematics Acquired . | . . . . Parts Built . | . . . . Authchips . | . . . . Time . | . . . . Total Part Build Rating . | . . . . Part Studies Acquired . | . . . . Parts Repaired . | . . . . Time . | . . . . Parts Recycled . | . . . . Recycled Matter . | . . . . Retrieved Matter . | . . . . Retrieved Components . | . . . . Parts Scanalyzed . | . . . . Part Schematics Acquired . | . . . . Parts Damaged . | . . . . Bothacking | -11 -10 -10 -7 ------------ Run | Yrd Mat Sub Rec Used RIF Installer . | . . . . Robots Hacked . | . . . . Non-combat . | . . . . Combat . | . . . . Robot Hacks Applied . | . . . . Relay Couplers Released . | . . . . Fabnet Peak Effective % . | . . . . Robots Rewired . | . . . . Allies Hacked . | . . . . Hacks Repelled . | . . . . Allies | -11 -10 -10 -7 -------- Run | Yrd Mat Sub Rec Total Allies . | . . . . Largest Group . | . . . . Highest-Rated Group . | . . . . Highest-Rated Ally . | . . . . Total Orders . | . . . . Ally Attacks . | . . . . Total Damage . | . . . . Kills . | . . . . Allies Corrupted . | . . . . Allies Melted 1 | . . 1 . Intel | -11 -10 -10 -7 ------- Run | Yrd Mat Sub Rec Active Infowar (turns) 892 | 10 766 116 . Terrain 892 | 10 766 116 . Robot Analysis Total 1 | . 1 . . Derelict Logs Recovered 2 | . . 2 . Drone Launches . | . . . . Drone Recoveries . | . . . . Exploration | -11 -10 -10 -7 ------------- Run | Yrd Mat Sub Rec Turns Passed 5240 | 81 766 4343 50 Spaces Moved 2908 | 42 383 2462 21 Core . | . . . . Treads 1785 | 2 383 1400 . Legs 40 | 40 . . . Wheels 1083 | . . 1062 21 Hover . | . . . . Flight . | . . . . Fastest Speed 100 | 120 160 100 190 Average Speed 153 | 121 160 152 200 Slowest Speed 205 | 160 160 190 205 Overloaded Moves . | . . . . Propulsion Burnouts . | . . . . Robots Hopped . | . . . . Potential Cave-ins . | . . . . Cave-ins Triggered . | . . . . Exploration Rate (%) 41 | 3 72 85 7 Regions Visited 3 Branch Regions 2 Pre-discovered Areas 5 | . 2 3 . Known Exits Taken 1 | . 1 . . Unknown Exits Taken 2 | 1 . 1 . Scrap Searched 4 | . . 4 . Spaces Dug . | . . . . Terrain Destroyed 31 | . 28 3 . Melee . | . . . . Projectile 3 | . . 3 . AOE 28 | . 28 . . Terrain Rammed . | . . . . Walls Destroyed . | . . . . Machines Disabled . | . . . . Actions | -11 -10 -10 -7 --------- Run | Yrd Mat Sub Rec Total 3473 | 56 471 2919 27 Wait 375 | . 44 327 4 Move 2905 | 41 382 2461 21 Hop . | . . . . Pick Up 20 | . 4 16 . Fast Attach 6 | 1 . 4 1 Attach 3 | 2 . 1 . Detach 1 | . . 1 . Swap 11 | 1 3 7 . Drop 12 | 2 1 9 . Fire 114 | 9 35 69 1 Melee 15 | . . 15 . Ram . | . . . . Kick . | . . . . Crush 2 | . 2 . . Escape Stasis . | . . . . Rewire . | . . . . Trap . | . . . . Miscellaneous 9 | . . 9 . Route ------- -11/Scrapyard -10/Materials (discovered 6 exits: *Mat x3 / *Min x2 / *Sub) -10/Subcaves (discovered 4 exits: [*Mat x2] / [*Rec] / [*Scr]) -7/Recycling History --------- Turn | Location | Event 15 | -11/Scrapyard | Discovered new exit (range 3) 82 | -11/Scrapyard | Entered Materials 183 | -10/Materials | Discovered new exit (range 15) 292 | -10/Materials | Discovered new exit (range 13) 299 | -10/Materials | Discovered new exit (range 6) 314 | -10/Materials | Build established: Mutant 391 | -10/Materials | Discovered new exit (range 16) 417 | -10/Materials | Central database locked down 567 | -10/Materials | Learned 4 Subcaves zone layouts 605 | -10/Materials | Identified exit to Materials 631 | -10/Materials | Identified exit to Mines 631 | -10/Materials | Identified exit to Subcaves 656 | -10/Materials | Learned Storage trap positions 657 | -10/Materials | Learned 2 Mines zone layouts 658 | -10/Materials | Learned location of 1 exit from Materials 663 | -10/Materials | Learned 4 Recycling zone layouts 676 | -10/Materials | Learned 2 Storage zone layouts 848 | -10/Materials | Entered Subcaves 849 | -10/Subcaves | Approached by a straggling Scientist 856 | -10/Subcaves | Learned location of Zion (-7) 1267 | -10/Subcaves | Scientist uncovered a shortcut to Scraptown 1549 | -10/Subcaves | A swath of the cavern ceiling suddenly collapsed 1744 | -10/Subcaves | Visited Clippyterm 1748 | -10/Subcaves | Learned Research machine intel 2061 | -10/Subcaves | Discovered new exit (range 10) 2276 | -10/Subcaves | Shifting Twisted Machinery released Sub. Shrapnel Launcher 2341 | -10/Subcaves | A Subdweller sparked back to life 2341 | -10/Subcaves | A Subdweller sparked back to life 2425 | -10/Subcaves | Found Prototype Power Core 2458 | -10/Subcaves | Shifting Twisted Machinery released Piercing Trap 2523 | -10/Subcaves | A swath of the cavern ceiling suddenly collapsed 2541 | -10/Subcaves | Shifting Twisted Machinery released Flamer 2567 | -10/Subcaves | Shifting Twisted Machinery released Sub. Laser 3092 | -10/Subcaves | Shifting Twisted Machinery released Shrapnel Trap 3108 | -10/Subcaves | Met a Zionite searching for "candidates" 3111 | -10/Subcaves | Shifting Twisted Machinery released Sub. Beam Cannon 3484 | -10/Subcaves | Visited 4L-MR0's lab 3489 | -10/Subcaves | Identified Meta Core 3522 | -10/Subcaves | Found Powered Cannon 3523 | -10/Subcaves | Attached Powered Cannon, gained temporary slot: Power 3778 | -10/Subcaves | Ambushed by angry Subdweller bent on revenge 3810 | -10/Subcaves | Discovered new exit (range 13) 3820 | -10/Subcaves | Core integrity fell below 50% 3826 | -10/Subcaves | Discovered new exit (range 14) 4454 | -10/Subcaves | Build established: Hauler-Mutant 4617 | -10/Subcaves | Found SUBCON Basin 5191 | -10/Subcaves | Entered Recycling 5241 | -7/Recycling | Self-destructed Last Messages --------------- 04809_ Acquired Com. Wheel. 04813_ Acquired Ion Engine. 04816_ Acquired Sml. Storage Unit. 04914_ E0-SNF(O) puts together Sub. Laser. 04922_ Acquired Mak. Light Armor Plating. 04930_ Acquired Sub. Laser. 04966_ Sub. Monowheel shoots sparks and powers down. 05166_ Acquired 10 matter. LOCATION=UNKNOWN GOAL=ESCAPE Loading 4 Recycling zones... 05203_ Acquired Rnf. Deuterium Engine. 05204_ Acquired 10 matter. 05215_ Y-54 Guardian suffers critical hit (Meltdown). 05215_ Imp. Heat Sink melted. 05215_ Lgt. Treads melted. 05217_ R-06 Scavenger collects Gatling Laser. 05220_ R-06 Scavenger collects Lgt. Treads. Map ----- +----------------------------------------------------+ | | | | | | | | | | | ?????????????????????????????????????????????????? | | ?????????????????????????????????????????????????? | | ?????????????????????????????????????????????????? | | ?????????????????????????????????????????????????? | | ?????????????????????????????????????????????????? | | ?????????????????????????????????????????????????? | | ?????????????????????????????????????????????????? | | ?????????????????????????????????????????????????? | | ?????????????????????????????????????????????????? | | ?????????????????????????????????????????????????? | | ?????????????????????????????????????????????????? | | ?????????????????????????????????????????????????? | | ?????????????????????????????????????????????????? | | ?????????????????????????????????????????????????? | | ?????????????????????????????????????????????????? | | ?????????????????????????????????????????????????? | | ######???????????????????????????????????????????? | | ????????????????????###????????????????????? | | """ ????????????????#####%################?????? | | """"" ????????????##### #?????? | | """"" ????????????+ r @ #?????? | | """"" ????????????##### #?????? | | """ ????????????????# ########+##+######?????? | | ????????????????# #??????# % #??????? | | ????????????????# #??????# #??????? | | #####+????????????????# #??????# ! #??????? | | ????????????????# #??????# #??????? | | ????????????????# +??????# #??????? | | ????????????????# #??????# #??????? | | ???????????????? ???????# #??????? | | ???????????????? ??????? ! #??????? | | ??????????????? ??????##!! #??????? | | ???????????????! ##???????##########??????? | | ???????????????!!!?????????????????????????? | | ???????????????###?????????????????????????? | | ### ???????????????????????????????????????????? | | ??# ???????????????????????????????????????????? | | ??# ???????????????????????????????????????????? | | ??# ???????????????????????????????????????????? | | ### ???????????????????????????????????????????? | | # ???????????????????????????????????????????? | | + ???????????????????????????????????????????? | | # ???????????????????????????????????????????? | | # ???????????????????????????????????????????? | | + ???????????????????????????????????????????? | +----------------------------------------------------+ Best States ------------- Heat Dissipation 25 Energy Generation 21 Energy Capacity 440 Matter Stores 300 Matter Capacity 300 Sight Range 16 Terrain Scan Range 16 Terrain Scan Density 10 Armor Coverage 800 Evasion (%) 50 Recoil Reduction 2 Item Schematics ----------------- None Robot Schematics ------------------ None Fabricated ------------ Nothing Repaired ---------- Nothing Studied --------- None Alien Tech Used ----------------- None Achievements -------------- None Challenges ------------ None Game ------ Seed MicroReactionObfuscator Manual? 0 Play Time 00:22:34 Cumulative 365.5 hours Start 2026.03.27 @ 00:26:29 End 2026.03.27 @ 00:50:09 Sessions 1 Manual Loads 0 Difficulty Rogue Special Mode None Game No. 297 Rogue 261 Adventurer 36 Explorer 0 Win Type - Total 5 Types 2/0/0/1/0/0/0/2/0/0 Lore% 67 Gallery% 64 Achievement% 52 Wizard Run 0 Options --------- Layout 1 ASCII 0 Keyboard 0 Movement Numpad Keybinds 0 Fullscreen 1 Font 48/Smallcaps Map View 50x35 Zoom Use 0% Tactical HUD 1 Map Filters NONE Filters NONE Steam 1 RUN: 29391dad-de12-496f-a6f2-2a2c051e50e9